Cogmind - Beta 15 @@@ ROGUE MODE // 2025.06.17 @ 20:27:56 Player: Windjigo Result: Destroyed self with Grenade Launcher Performance ------------- Evolutions (0) 0 Regions Visited (2) 400 Robots Destroyed (30) 150 Value Destroyed (734) 734 Prototype IDs (0) 0 Alien Tech Used (0) 0 Bonus (0) 0 TOTAL SCORE: 1284 Bonus ------- None Cogmind --------- Core Integrity 0/250 Matter 280/300 Energy 222/250 System Corruption 0% Temperature Cool (0) Movement Rolling (107) Ox1 Location -10/Subcaves Parts ------- > --- POWER (1) -------- Ion Engine > --- PROPULSION (2) --- Wheel Subdweller Monowheel > --- UTILITY (2) ------ Large Storage Unit Hacking Suite > --- WEAPON (2) ------- Subdweller Laser Grenade Launcher > --- INVENTORY (15) --- Light Ion Engine Subdweller Power Source Subdweller Power Source Light Nuclear Core Compact Wheel Subdweller Monowheel Small Storage Unit Medium Storage Unit Subdweller Optics Sensor Array Signal Interpreter Seismic Detector Mining Laser Peak State ------------ > --- POWER ------------ Ion Engine > --- PROPULSION ------- Wheel Subdweller Monowheel > --- UTILITY ---------- Large Storage Unit Hacking Suite > --- WEAPON ----------- Subdweller Laser Subdweller Machine Gun > --- INVENTORY -------- Light Ion Engine Subdweller Power Source Subdweller Power Source Light Nuclear Core Compact Wheel Subdweller Monowheel Small Storage Unit Medium Storage Unit Subdweller Optics Sensor Array Signal Interpreter Seismic Detector Grenade Launcher Mining Laser [Rating: 14] Favorites ----------- Power Light Ion Engine Engine Light Ion Engine Propulsion Wheel Wheel Wheel Utility Large Storage Unit Device Sensor Array Storage Large Storage Unit Hackware Hacking Suite Weapon Beam Cannon Energy Gun Medium Laser Energy Cannon Beam Cannon Ballistic Gun Subdweller Machine Gun Launcher Grenade Launcher Special Weapon Mining Laser Build | -11 -10 -10 ------- Run | Yrd Mat Sub Slots Evolved . | . . . Power . | . . . Propulsion . | . . . Utility . | . . . Weapon . | . . . Parts Attached 29 | 8 12 9 Power 4 | 1 2 1 Engine 4 | 1 2 1 Core . | . . . Reactor . | . . . Propulsion 9 | 2 4 3 Treads . | . . . Leg . | . . . Wheel 9 | 2 4 3 Hover . | . . . Flight . | . . . Utility 6 | 2 4 . Device 2 | 1 1 . Storage 3 | 1 2 . Processor . | . . . Hackware 1 | . 1 . Protection . | . . . Artifact . | . . . Weapon 10 | 3 2 5 Energy Gun 4 | 3 . 1 Energy Cannon 3 | . 1 2 Ballistic Gun 1 | . . 1 Ballistic Cannon . | . . . Launcher 1 | . . 1 Special Weapon 1 | . 1 . Impact Weapon . | . . . Slashing Weapon . | . . . Piercing Weapon . | . . . Special Melee Weapon . | . . . Unidentified Prototypes . | . . . Parts Lost 9 | . 1 8 Power . | . . . Propulsion 4 | . 1 3 Utility . | . . . Weapon 5 | . . 5 Highest Loss Streak 3 | . 1 3 To Critical Strikes 1 | . . 1 Average Backups 11 | 3 11 14 Power 2 | 1 2 2 Propulsion 2 | 1 2 2 Utility 3 | . 2 6 Weapon 3 | 1 3 3 Tool/Special . | . . . Unused Backups 9 | . . 9 Power 4 | . . 4 Propulsion 1 | . . 1 Utility 4 | . . 4 Weapon . | . . . Tool/Special . | . . . Average Slot Usage (%) 98 | . 99 98 Engine 14 | . 14 14 Wheel 27 | . 27 26 Device 7 | . 12 . Storage 14 | . 14 14 Hackware 6 | . . 14 Energy Gun 11 | . 17 4 Energy Cannon 12 | . 10 14 Ballistic Gun 3 | . . 8 Peak Build Rating 14 | 7 10 14 Average Rating 8 | 5 7 11 On Entrance 5 | . 7 10 Naked Turns . | . . . Heaviest Build 33 | 12 29 33 Greatest Support 30 | 20 20 30 Greatest Overweight (x) 2 | . 2 2 Average Overweight (x) . | . . . Largest Inventory Capacity 15 | 8 15 15 Average Capacity 13 | 7 12 15 Most Carried 15 | 6 15 15 Average Carried 11 | 3 11 14 Final Capacity 15 | 8 15 15 Final Carried 15 | 6 15 13 Class Distribution -------------------- 52% | Mutant 47% | Scavenger-Mutant Dominant Class ---------------- Mutant | -10/Materials Scavenger-Mutant | -10/Subcaves Resources | -11 -10 -10 ----------- Run | Yrd Mat Sub Matter Collected 612 | 280 205 127 Remotely . | . . . Salvage Created 945 | 67 443 435 Parts 66 | 9 30 27 Haulers Intercepted 2 | . 2 . Recyclers Shooed . | . . . Parts Field Recycled . | . . . Retrieved Matter . | . . . Parts Self-Destructed 10 | . . 10 Prevented . | . . . Kills | -11 -10 -10 ------- Run | Yrd Mat Sub Combat Hostiles Destroyed 21 | . 9 12 Guns 10 | . 4 6 Cannons 9 | . 5 4 AOE 2 | . . 2 Classes Destroyed 9 | 1 6 2 Worker 1 | . 1 . Tunneler 4 | 4 . . Hauler 2 | . 2 . Operator 1 | . 1 . Watcher 1 | . 1 . Swarmer 6 | . 3 3 Grunt 10 | . 6 4 Cobbler 1 | . . 1 Subdweller 5 | . . 5 Best Kill Streak 3 | 2 3 3 Combat Bots Only 3 | . 3 3 Max Kills in Single Turn 2 | 1 1 2 Gunslinging . | . . . Exploded 2 | . . 2 Melee . | . . . Uniques/NPCs Destroyed . | . . . Combat | -11 -10 -10 -------- Run | Yrd Mat Sub Hostile Shots Fired 116 | . 31 85 Missed 37 | . 9 28 Hits 79 | . 22 57 Projectile 79 | . 22 57 Critical Strikes 2 | . . 2 Damage Taken 1105 | . 202 903 Core 250 | . 28 222 Absorbed by Shields . | . . . Core Remaining (%) 100 | 100 . . Volleys Fired 112 | 16 39 57 Largest 2 | 2 2 2 Hottest 120 | 90 110 120 Shots Fired 213 | 32 74 107 Gun 120 | 32 48 40 Cannon 90 | . 24 66 Launcher 1 | . . 1 Special 2 | . 2 . Kinetic 22 | . . 22 Thermal 190 | 32 74 84 Explosive 1 | . . 1 Electromagnetic . | . . . Robot Hit Streak 19 | 4 7 19 Robot Miss Streak 5 | 5 2 2 Penetration Max . | . . . Secondary Targets . | . . . Shots Hit Robots 138 | 14 40 84 Core Hits 44 | 4 19 21 Critical Kills 1 | . . 1 Critical Parts Destroyed . | . . . Critical Strikes 5 | 3 1 1 Burn 4 | 3 1 . Destroy 1 | . . 1 Melee Attacks . | . . . Impact . | . . . Slashing . | . . . Piercing . | . . . Sneak Attacks . | . . . Combat Hostiles . | . . . Follow-up Attacks . | . . . Damage Inflicted 2336 | 164 571 1601 Guns 1112 | 164 335 613 Cannons 1091 | . 236 855 Explosions 133 | . . 133 Melee . | . . . Ramming . | . . . Kinetic 420 | . . 420 Thermal 1783 | 164 571 1048 Explosive 133 | . . 133 Electromagnetic . | . . . Impact . | . . . Slashing . | . . . Piercing . | . . . Highest Corruption . | . . . Average Corruption . | . . . Corruption Purged . | . . . Corruption Blocked . | . . . Overload Shots . | . . . Overflow Damage . | . . . Projectiles . | . . . Explosions . | . . . Melee . | . . . Knockbacks . | . . . Impact . | . . . Kinetic . | . . . Secondary . | . . . Self-Inflicted Damage 40 | . . 40 Shots 1 | . . 1 Rammed . | . . . Targets Rammed . | . . . Kicked . | . . . Crushed . | . . . Highest Temperature 264 | 150 264 42 Average Temperature 62 | 55 73 23 Received Heat Transfer 249 | . 60 189 Effects 1 | . 1 . Energy Bleed 1 | . 1 . Siege Activations . | . . . Martial Activations . | . . . Shielding Activations . | . . . Robots Disrupted . | . . . Combat Hostiles . | . . . Robots Corrupted . | . . . Combat Hostiles . | . . . Parts Fried . | . . . Impact Corruptions . | . . . Robots Melted . | . . . Combat Hostiles . | . . . Parts Melted 5 | 1 1 3 Heat Transferred 4175 | 680 1470 2025 Parts Sabotaged . | . . . Parts Stolen . | . . . Parts Stripped . | . . . Power Chain Reactions . | . . . Alert | -11 -10 -10 ------- Run | Yrd Mat Sub Maximum Alert Level . | . . . Low Security (%) 100 | 100 100 . Level 1 . | . . . Level 2 . | . . . Level 3 . | . . . Level 4 . | . . . Level 5 . | . . . High Security . | . . . Max Security . | . . . Peak Influence 107 | 5 107 . Initial . | . . . Average 54 | 1 65 . Influence Increases 618 | 20 408 190 Destroy 0b10 Robot/C 320 | . 180 140 Destroy 0b10 Robot/NC 45 | 20 25 . Destroy Leader 66 | . 46 20 Successful Hack 36 | . 36 . Disable Machine 45 | . 45 . Destroy Structure 1 | . 1 . Lose Combat Pursuer 105 | . 75 30 Influence Decreases 512 | 20 360 132 Entered New Map 24 | . . 24 Time Decay 468 | 20 360 88 Lost Part 20 | . . 20 Squads Dispatched 3 | . 3 . Investigation 1 | . 1 . Extermination . | . . . Reinforcement 2 | . 2 . Assault . | . . . Garrison . | . . . Intercept . | . . . Searches Triggered . | . . . Construction Impeded . | . . . Haulers Reinforced . | . . . Active Scanning Responses . | . . . Cargo Convoy Interrupts . | . . . Stealth | -11 -10 -10 --------- Run | Yrd Mat Sub Distress Signals 1 | . 1 . Communications Jammed . | . . . Distress Signals . | . . . Times Spotted 33 | . 18 15 Peak Tracking Total 6 | . 3 6 Tactical Retreats 4 | . 3 1 Traps | -11 -10 -10 ------- Run | Yrd Mat Sub Traps Triggered 5 | . 5 . Indirectly . | . . . Trap Hack Attempts . | . . . Triggered . | . . . Disarmed . | . . . Reprogrammed . | . . . Reused . | . . . Traps Extracted . | . . . Installed . | . . . Triggered . | . . . Machines | -11 -10 -10 ---------- Run | Yrd Mat Sub Machines Disabled 3 | . 3 . Max in Single Turn 1 | . 1 . Machines Repaired . | . . . Machines Dismantled . | . . . Machines Sabotaged . | . . . Overloaded Fab Kills . | . . . Hacking | -11 -10 -10 --------- Run | Yrd Mat Sub Machines Accessed 7 | . 6 1 Terminals 6 | . 6 . Fabricators . | . . . Repair Stations . | . . . Recycling Units . | . . . Scanalyzers . | . . . Garrison Access . | . . . Total Hacks 27 | . 22 5 Successful 17 | . 12 5 Failed 10 | . 10 . Catastrophic . | . . . Database Lockouts . | . . . Manual 17 | . 17 . Terminals 22 | . 22 . Fabricators . | . . . Repair Stations . | . . . Recycling Units . | . . . Scanalyzers . | . . . Garrison Access . | . . . Terminal Hacks 12 | . 7 5 Record 5 | . . 5 Robot Analysis 2 | . 2 . Locate Traps 1 | . 1 . Zone Layout 4 | . 4 . Fabricator Hacks . | . . . Repair Station Hacks . | . . . Recycling Unit Hacks . | . . . Scanalyzer . | . . . Garrison Access Hacks . | . . . Unauthorized Hacks 5 | . 5 . Terminals 5 | . 5 . Botnet 5 | . 5 . Fabricators . | . . . Repair Stations . | . . . Recycling Units . | . . . Scanalyzers . | . . . Garrison Access . | . . . Data Cores Recovered . | . . . Used . | . . . Hacking Detections 6 | . 6 . Full Trace Events . | . . . Feedback Events . | . . . Feedback Blocked . | . . . Robot Schematics Acquired . | . . . Robots Built . | . . . Authchips . | . . . Time . | . . . Total Robot Build Rating . | . . . Part Schematics Acquired . | . . . Parts Built . | . . . Authchips . | . . . Time . | . . . Total Part Build Rating . | . . . Parts Repaired . | . . . Time . | . . . Parts Recycled . | . . . Recycled Matter . | . . . Retrieved Matter . | . . . Retrieved Components . | . . . Parts Scanalyzed . | . . . Part Schematics Acquired . | . . . Parts Damaged . | . . . Bothacking | -11 -10 -10 ------------ Run | Yrd Mat Sub Used RIF Installer . | . . . Robots Hacked . | . . . Non-combat . | . . . Combat . | . . . Robot Hacks Applied . | . . . Relay Couplers Released . | . . . Fabnet Peak Effective % . | . . . Robots Rewired . | . . . Allies Hacked . | . . . Hacks Repelled . | . . . Allies | -11 -10 -10 -------- Run | Yrd Mat Sub Total Allies . | . . . Largest Group . | . . . Highest-Rated Group . | . . . Highest-Rated Ally . | . . . Total Orders . | . . . Ally Attacks . | . . . Total Damage . | . . . Kills . | . . . Allies Corrupted . | . . . Allies Melted . | . . . Intel | -11 -10 -10 ------- Run | Yrd Mat Sub Active Infowar (turns) 840 | 15 825 . Sensors 462 | . 462 . Seismic 378 | 15 363 . Robot Analysis Total 2 | . 2 . Derelict Logs Recovered . | . . . Drone Launches . | . . . Drone Recoveries . | . . . Exploration | -11 -10 -10 ------------- Run | Yrd Mat Sub Turns Passed 1812 | 181 895 736 Spaces Moved 1356 | 141 740 475 Core 2 | 1 1 . Treads . | . . . Legs . | . . . Wheels 1354 | 140 739 475 Hover . | . . . Flight . | . . . Fastest Speed 50 | 50 80 95 Average Speed 91 | 79 89 97 Slowest Speed 150 | 80 150 110 Overloaded Moves . | . . . Propulsion Burnouts . | . . . Robots Hopped . | . . . Potential Cave-ins . | . . . Cave-ins Triggered . | . . . Exploration Rate (%) 43 | 5 96 29 Regions Visited 2 Branch Regions 1 Pre-discovered Areas . | . . . Known Exits Taken . | . . . Unknown Exits Taken 2 | 1 1 . Scrap Searched . | . . . Spaces Dug 1 | . 1 . Terrain Destroyed 4 | . 1 3 Melee . | . . . Projectile 1 | . 1 . AOE 3 | . . 3 Terrain Rammed . | . . . Walls Destroyed . | . . . Machines Disabled . | . . . Actions | -11 -10 -10 --------- Run | Yrd Mat Sub Total 1712 | 176 894 642 Wait 157 | . 67 90 Move 1354 | 140 739 475 Hop . | . . . Pick Up 38 | 12 18 8 Fast Attach 5 | 1 4 . Attach 20 | 6 6 8 Detach . | . . . Swap 15 | 1 12 2 Drop 11 | . 9 2 Fire 112 | 16 39 57 Melee . | . . . Ram . | . . . Kick . | . . . Crush . | . . . Escape Stasis . | . . . Rewire . | . . . Trap . | . . . Miscellaneous . | . . . Route ------- -11/Scrapyard -10/Materials (discovered 5 exits: [*Mat x3] / [*Min] / *Sub) -10/Subcaves (discovered 2 exits: [*Mat] / [*Rec]) History --------- Turn | Location | Event 14 | -11/Scrapyard | Discovered new exit (range 15) 182 | -11/Scrapyard | Entered Materials 312 | -10/Materials | Build established: Mutant 340 | -10/Materials | Discovered new exit (range 10) 530 | -10/Materials | Discovered new exit (range 15) 678 | -10/Materials | Discovered new exit (range 8) 886 | -10/Materials | Discovered new exit (range 15) 1071 | -10/Materials | Discovered new exit (range 7) 1077 | -10/Materials | Entered Subcaves 1078 | -10/Subcaves | Approached by a straggling Scientist 1157 | -10/Subcaves | Shifting Twisted Machinery released Sub. Laser 1273 | -10/Subcaves | Lost 3 parts (1n2w) 1381 | -10/Subcaves | Lost 3 parts (2n1w) 1394 | -10/Subcaves | Shifting Twisted Machinery released Spk. Treads 1437 | -10/Subcaves | Core integrity fell below 50% 1537 | -10/Subcaves | Discovered new exit (range 8) 1647 | -10/Subcaves | Build established: Scavenger-Mutant 1758 | -10/Subcaves | Visited Clippyterm 1761 | -10/Subcaves | Learned Factory fabricator intel 1761 | -10/Subcaves | Learned Research machine intel 1796 | -10/Subcaves | Discovered new exit (range 14) 1807 | -10/Subcaves | Core integrity fell below 20% 1813 | -10/Subcaves | Destroyed self with Grenade Launcher Last Messages --------------- >>Record! "Bogan" It looks like you're interested in the dark side, V4-D3R would be pleased, though I don't think they're in the habit of teaching apprentices. >>Record! "SUBCON Basin" It looks like you want to play with dangerous UFD tech. While I can't recommend taking subatomizers out of the Subcaves, I can warn that doing so is a one-way ticket to summoning unimaginable chaos on any area not hardened against them. That includes... just about anywhere. QM-SP9(c): "I think it's somewhere southeast of here" 01796_ EXIT=FOUND 01801_ S-10 Pest destroyed. 01802_ Sub. Machine Gun destroyed. 01808_ Destroyed Flight Unit. 01813_ S-10 Pest destroyed. Map ----- +----------------------------------------------------+ | ## ####???????????????????#&&# # ##????????? | | ## #????????????????????##%#### ##????????? | | # #????????????????????#&&#??## ##???????? | | #????????????????????# ##??## # #???????? | | # ##??????????????###???# #???########???????? | | ## #????????####### ###?# ##??????????????????? | | # ##????????#"""## ####%##??????????????????? | | # #?????????#"" ## ### %##?????????????????? | | "! ##?????????#"X ##????????????????? | | "% ###????????#"" ## ##???????????????? | | & ##???????#"""### #???????????????? | | """ #???????#####?## #???????????????? | | ### "#??????????????# ##???????????????? | | #?#####??????????????## ## #???????????????? | | ###???????????????????## ### #???????????????? | | !####?????????????????# ### #???????????????? | | ##???????????????## ##??????????????? | | #???????????????# #??????????????? | | ### ##???????????????# ## #??????????????? | | ??# #????????????????# ### #??????????????? | | ??# #????????????????## # # ##??????????????? | | ??# #????????????????## c #???????????????? | | ??## ##????????????????# #???????????????? | | ???###?????????????????# ######???????????????? | | ??????????????????????## #????????????????????? | | ??????????????????????# =@###????????????????????? | | #?????????????????????#[% #??????????????????????? | | ### ##????????????????#%s###### "#???????????? | | #???????????????#* ""????????????? | | "" #???????????????# <#??????????? | | "" #??????????????# ""#???????????? | | """???????????????######### "#???????????? | | # " "#????????????????????????? "#???????????? | | " ##???????????????????????????"""????????????? | | # ##???????????????????????????????????????????? | | ## ##??????????????????????????????????????????? | | ?# # ##" "??????????????????????????????????????? | | ## ?????????????????????????????????????????? | | # ####?????????????????????????????????????????? | | ##????? #?????????????????????????????????????? | | ##### #?????????????????????????????????????? | | # " "" ##????????????????????????????????????? | | ##"" " #????????????????????????????????????? | | ?###""## #???????????????????????????????????? | | ???####??? #???????????????????????????????????? | | ?????????????????????????????????????????????????? | | ?????????????????????????????????????????????????? | | ?????????????????????????????????????????????????? | | ?????????????????????????????????????????????????? | | ?????????????????????????????????????????????????? | +----------------------------------------------------+ Best States ------------- Heat Dissipation 25 Energy Generation 10 Energy Capacity 250 Matter Stores 300 Matter Capacity 300 Sight Range 16 Robot Scan Range 14 Terrain Scan Density 10 Evasion (%) 44 Offensive Hacking 10 Item Schematics ----------------- None Robot Schematics ------------------ None Fabricated ------------ Nothing Repaired ---------- Nothing Alien Tech Used ----------------- None Achievements -------------- None Challenges ------------ None Game ------ Seed ShieldVampiricRipper Manual? 0 Play Time 00:19:45 Cumulative 90.0 hours Start 2025.06.17 @ 20:04:44 End 2025.06.17 @ 20:27:56 Sessions 1 Manual Loads 0 Difficulty Rogue Special Mode None Game No. 67 Rogue 67 Adventurer 0 Explorer 0 Win Type - Total 0 Types 0/0/0/0/0/0/0/0/0/0 Lore% 58 Gallery% 47 Achievement% 43 Wizard Run 0 Options --------- Layout 1 ASCII 0 Keyboard 0 Movement Mouse Keybinds 0 Fullscreen 1 Font 24/Smallcaps Map View 50x35 Zoom Use 0% Tactical HUD 1 Map Filters NONE Filters NONE Steam 1 RUN: 7856f29b-a993-43a2-bd4a-e327bf22dd06